fUSD/lending_fUSD_20251214
["ID","MTS","AMOUNT","RATE_DAILY","PERIOD"]
[398488184,1765735845282,-658.25479936,0.00016211,2]
[398488185,1765735845299,-902.9576132,0.00016211,2]
[398488186,1765735845310,-324.16889997,0.00016211,2]
[398488187,1765735845436,-409.67974504,0.00016211,2]
[398488188,1765735845449,-2222.1807885,0.00016211,2]
[398488189,1765735845458,-56119.32486633,0.00017,2]
[398488289,1765735911748,1166.57,7.965e-05,2]
[398488290,1765735911961,1166.57,8.384e-05,2]
[398488291,1765735912180,1166.57,8.803e-05,2]
[398488292,1765735912645,1166.57,9.223e-05,2]
[398488293,1765735915163,1166.57,9.642e-05,2]
[398488294,1765735915197,1166.57,0.00010061,2]
[398488295,1765735915233,1166.57,0.0001048,2]
[398488296,1765735915263,1166.57,0.00010899,2]
[398488297,1765735915298,667.45,0.00011319,2]
[398488298,1765735915321,499.12,0.00011319,2]
[398488299,1765735915354,1166.57,0.00011738,2]
[398488300,1765735915392,1166.57,0.00012157,2]
[398488301,1765735915422,1166.57,0.00012576,2]
[398488302,1765735915462,1166.57,0.00012995,2]
[398488303,1765735915499,1166.57,0.00013415,2]
[398488304,1765735915538,1166.57,0.00013834,2]
[398488305,1765735915570,1166.57,0.00014253,2]
[398488306,1765735915605,1166.57,0.00014672,2]
[398488307,1765735915715,168.33,0.00015091,2]
[398488308,1765735915739,998.24,0.00015091,2]
[398488309,1765735915916,1166.57,0.00015511,2]
[398488316,1765735956651,305.54534749,0.00011738,2]
[398488321,1765735964260,383.3499577,0.00011738,2]
[398488324,1765735983597,5525.0,0.000123,5]
[398488344,1765736075810,2483.16,0.00015521,2]
[398488357,1765736120638,200.0,0.00015514,2]
[398488380,1765736239940,1000.0,0.00013699,2]
[398488422,1765736382741,4417.0,0.000117,5]
[398488424,1765736407337,-161.73294289,0.00015729,2]
[398488425,1765736430157,532.28,0.0001519,2]
[398488431,1765736472528,200.0,0.0001526,2]
[398488432,1765736506566,166.66,0.0001563,2]
[398488440,1765736616052,151.88,0.00015045,2]
[398488442,1765736707588,150.0,0.00015288,2]
[398488443,1765736707654,256.11657701,0.00015288,2]
[398488444,1765736708303,207.16497408,0.00015288,2]
[398488445,1765736712911,187.07956536,0.00015288,2]
[398488446,1765736714480,150.0,0.00015288,2]
[398488447,1765736716353,150.0,0.00015288,2]
[398488448,1765736720213,7338.86003918,9e-05,2]
[398488454,1765736724696,194.64564036,0.00015692,2]
[398488455,1765736729039,150.0,0.00015288,2]
[398488456,1765736762039,10023.22670517,8e-05,2]
[398488487,1765736937918,999.0,0.00015011,3]
[398488488,1765736955119,1007.003693,0.00015674,2]
[398488495,1765737018508,6525.78692958,0.00015683,2]
[398488496,1765737030532,194.64564035,0.00015682,2]
[398488501,1765737031445,-569.53881772,0.00015764,2]
[398488502,1765737031457,-195.0,0.00015766,2]
[398488503,1765737031466,-4708.04,0.00015772,2]
[398488504,1765737031475,-4708.04,0.00015772,2]
[398488505,1765737031485,-300.0,0.00015781,2]
[398488506,1765737031494,-300.0,0.00015781,2]
[398488507,1765737031504,-1200.0,0.00015781,2]
[398488508,1765737031513,-743.06576095,0.00015782,2]
[398488509,1765737031522,-298.16319191,0.00015782,2]
[398488510,1765737031534,-2000.0,0.00015782,2]
[398488511,1765737031545,-454.69711136,0.00015782,2]
[398488512,1765737031556,-2125.2837083,0.00015782,2]
[398488513,1765737031567,-647.68563274,0.00015782,2]
[398488514,1765737031584,-3668.11136025,0.00015782,2]
[398488515,1765737031602,-472942.90683961,0.00015782,2]
[398488516,1765737031613,-24240.8833857,0.00015782,2]
[398488517,1765737031626,-59831.95189779,0.00015782,2]
[398488518,1765737031638,-66690.02094554,0.00015782,2]
[398488519,1765737031650,-69552.77744288,0.00015782,2]
[398488520,1765737031670,-5722.72505615,0.00015782,2]
[398488521,1765737031687,-400.0,0.00015782,2]
[398488522,1765737031699,-3254.28109897,0.00015782,2]
[398488523,1765737031710,-358.18542014,0.00015782,2]
[398488540,1765737037563,-193.13103637,0.00015781,2]
[398488541,1765737037574,-625.46751836,0.00015781,2]
[398488542,1765737037585,-181.40144527,0.00015781,2]
[398488543,1765737037598,-20.67422297,0.00015781,2]
[398488544,1765737037608,-500.0,0.00015781,2]
[398488545,1765737037618,-500.0,0.00015781,2]
[398488546,1765737037628,-17.48394855,0.00015781,2]
[398488547,1765737037674,-305.6842291,0.00015781,2]
[398488548,1765737037732,-176.83182235,0.00015781,2]
[398488549,1765737037742,-500.0,0.00015781,2]
[398488550,1765737037752,-348.29842632,0.00015781,2]
[398488551,1765737037763,-500.0,0.00015781,2]
[398488552,1765737037772,-351.65277209,0.00015781,2]
[398488553,1765737037782,-500.0,0.00015781,2]
[398488555,1765737037791,-587.68304182,0.00015781,2]
[398488557,1765737037801,-175.19168525,0.00015781,2]
[398488559,1765737037811,-500.0,0.00015781,2]
[398488561,1765737037820,-16443.55536839,0.00015782,2]
[398488562,1765737037831,-354.0347142,0.00015782,2]
[398488574,1765737039532,-571.21112236,0.00015782,2]
[398488575,1765737039586,-30443.52570371,0.00015782,2]
[398488576,1765737039595,-195.0,0.00015783,2]
[398488577,1765737039604,-1273.0895,0.00015792,2]
[398488578,1765737039614,-6855.2705,0.00015792,2]
[398488579,1765737039623,-1000.0,0.00015792,2]
[398488580,1765737039632,-2500.0,0.00015792,2]
[398488581,1765737039641,-13056.12545052,0.000158,2]
[398488582,1765737039654,-6525.78692949,0.00015818,2]
[398488583,1765737039663,-1111.0,0.00015849,2]
[398488584,1765737039672,-653.84611853,0.00015849,2]
[398488585,1765737039681,-397.16,0.00015849,2]
[398488586,1765737039691,-300.0,0.00015849,2]
[398488587,1765737039700,-200.0,0.00015849,2]
[398488588,1765737039709,-207.4,0.00015849,2]
[398488589,1765737039718,-215.0738,0.00015849,2]
[398488590,1765737039727,-223.0315306,0.00015849,2]
[398488591,1765737039737,-231.28369723,0.00015849,2]
[398488592,1765737039746,-239.84119403,0.00015849,2]
[398488593,1765737039755,-248.71531821,0.00015849,2]
[398488594,1765737039764,-257.91778498,0.00015849,2]
[398488595,1765737039775,-267.46074303,0.00015849,2]
[398488596,1765737039783,-277.35679052,0.00015849,2]
[398488597,1765737039793,-459.15286162,0.00015883,2]
[398488598,1765737039801,-250.0,0.00015883,2]
[398488599,1765737039811,-250.0,0.00015883,2]
[398488600,1765737039820,-574.12855637,0.00015883,2]
[398488601,1765737039830,-500.0,0.00015883,2]
[398488602,1765737039839,-317.9341522,0.00015883,2]
[398488603,1765737039848,-500.0,0.00015883,2]
[398488604,1765737039857,-1000.0,0.00015883,2]
[398488605,1765737039866,-500.0,0.00015883,2]
[398488606,1765737039875,-1000.0,0.00015883,2]
[398488607,1765737039884,-1000.0,0.00015883,2]
[398488608,1765737039893,-500.0,0.00015883,2]
[398488609,1765737039902,-500.0,0.00015883,2]
[398488610,1765737039911,-1000.0,0.00015883,2]
[398488611,1765737039923,-500.0,0.00015883,2]
[398488612,1765737039932,-500.0,0.00015883,2]
[398488613,1765737039942,-1000.0,0.00015883,2]
[398488614,1765737039951,-500.0,0.00015883,2]
[398488615,1765737039960,-500.0,0.00015883,2]
[398488616,1765737039970,-200.0,0.00015883,2]
[398488617,1765737039979,-1000.0,0.00015883,2]
[398488619,1765737039988,-500.0,0.00015883,2]
[398488620,1765737039997,-500.0,0.00015883,2]
[398488622,1765737040008,-500.0,0.00015883,2]
[398488624,1765737040017,-1000.0,0.00015883,2]
[398488625,1765737040026,-500.0,0.00015883,2]
[398488626,1765737040035,-500.0,0.00015883,2]
[398488628,1765737040044,-1000.0,0.00015883,2]
[398488629,1765737040053,-500.0,0.00015883,2]
[398488631,1765737040062,-500.0,0.00015883,2]
[398488632,1765737040071,-1000.0,0.00015883,2]
[398488633,1765737040080,-500.0,0.00015883,2]
[398488634,1765737040089,-500.0,0.00015883,2]
[398488635,1765737040099,-1000.0,0.00015883,2]
[398488636,1765737040108,-500.0,0.00015883,2]
[398488637,1765737040117,-500.0,0.00015883,2]
[398488638,1765737040126,-1000.0,0.00015883,2]
[398488639,1765737040135,-500.0,0.00015883,2]
[398488640,1765737040144,-500.0,0.00015883,2]
[398488641,1765737040153,-151.0,0.00015883,2]
[398488642,1765737040162,-500.0,0.00015883,2]
[398488643,1765737040172,-234.13293851,0.00015883,2]
[398488644,1765737040187,-265.86706149,0.00015883,2]
[398488645,1765737040196,-151.0,0.00015883,2]
[398488646,1765737040206,-151.0,0.00015883,2]
[398488647,1765737040216,-139.256534,0.00015883,2]
[398488648,1765737040230,-11.743466,0.00015883,2]
[398488649,1765737040240,-1000.0,0.00015883,2]
[398488650,1765737040249,-151.0,0.00015883,2]
[398488651,1765737040259,-38.456534,0.00015883,2]
[398488652,1765737042302,-961.543466,0.00015883,2]
[398488653,1765737042311,-151.0,0.00015883,2]
[398488654,1765737042321,-1000.0,0.00015883,2]
[398488655,1765737042330,-151.0,0.00015883,2]
[398488656,1765737042339,-1000.0,0.00015883,2]
[398488657,1765737042348,-1000.0,0.00015883,2]
[398488658,1765737042357,-469.64300371,0.00015883,2]
[398488660,1765737042369,-530.35699629,0.00015883,2]
[398488662,1765737042378,-1000.0,0.00015883,2]
[398488663,1765737042388,-1000.0,0.00015883,2]
[398488664,1765737042397,-1000.0,0.00015883,2]
[398488665,1765737042407,-620.0,0.00015883,2]
[398488666,1765737042416,-1064.93454937,0.00015883,2]
[398488667,1765737042425,-1000.0,0.00015883,2]
[398488668,1765737042435,-200.0,0.00015883,2]
[398488669,1765737042444,-500.0,0.00015883,2]
[398488670,1765737042454,-500.0,0.00015883,2]
[398488671,1765737042463,-1000.0,0.00015883,2]
[398488672,1765737042474,-1000.0,0.00015883,2]
[398488673,1765737042484,-151.0,0.00015883,2]
[398488675,1765737042493,-151.0,0.00015883,2]
[398488677,1765737042503,-151.0,0.00015883,2]
[398488678,1765737042513,-151.0,0.00015883,2]
[398488679,1765737042523,-151.0,0.00015883,2]
[398488680,1765737042532,-151.0,0.00015883,2]
[398488681,1765737042542,-151.0,0.00015883,2]
[398488682,1765737042551,-151.0,0.00015883,2]
[398488683,1765737042561,-151.0,0.00015883,2]
[398488684,1765737042571,-151.0,0.00015883,2]
[398488685,1765737042580,-151.0,0.00015883,2]
[398488686,1765737042589,-463.85327464,0.000159,2]
[398488687,1765737042599,-1111.0,0.00015904,2]
[398488688,1765737042609,-13056.12545047,0.00015922,2]
[398488689,1765737042618,-1166.57,0.0001593,2]
[398488690,1765737042628,-152.08,0.0001593,2]
[398488691,1765737042638,-6525.78692949,0.00015953,2]
[398488692,1765737042647,-1111.0,0.00015959,2]
[398488693,1765737042657,-25850.13337591,0.00016,4]
[398488694,1765737042667,-13056.12545047,0.00016044,2]
[398488695,1765737042676,-6525.78692949,0.00016089,2]
[398488696,1765737042686,-508.9156175,0.00016089,2]
[398488697,1765737042695,-546.23,0.00016089,2]
[398488698,1765737042706,-504.03,0.00016089,2]
[398488699,1765737042715,-500.0,0.00016089,2]
[398488700,1765737042724,-516.06363268,0.00016089,2]
[398488701,1765737042734,-500.0,0.00016089,2]
[398488702,1765737042743,-502.41193472,0.00016089,2]
[398488703,1765737042752,-500.0,0.00016089,2]
[398488704,1765737042761,-500.0,0.00016089,2]
[398488705,1765737042771,-506.09206684,0.00016089,2]
[398488706,1765737042780,-500.0,0.00016089,2]
[398488707,1765737042789,-500.0,0.00016089,2]
[398488708,1765737042799,-500.0,0.00016089,2]
[398488709,1765737042808,-500.0,0.00016089,2]
[398488710,1765737042817,-151.88,0.00016119,2]
[398488711,1765737042827,-150.0,0.00016137,2]
[398488712,1765737042837,-484.0,0.00016152,2]
[398488713,1765737042846,-13056.12545047,0.00016167,2]
[398488714,1765737042855,-500.0,0.00016169,2]
[398488716,1765737042865,-609.67599965,0.00016169,2]
[398488717,1765737042874,-500.0,0.00016169,2]
[398488718,1765737042883,-500.0,0.00016169,2]
[398488719,1765737042894,-6525.78692949,0.00016224,2]
[398488720,1765737042903,-193.64493313,0.00016224,2]
[398488721,1765737042916,-500.0,0.00016224,2]
[398488722,1765737042925,-500.0,0.00016224,2]
[398488723,1765737042935,-500.0,0.00016224,2]
[398488724,1765737042944,-500.0,0.00016224,2]
[398488725,1765737042954,-382.07221643,0.00016224,2]
[398488726,1765737042963,-500.0,0.00016224,2]
[398488727,1765737042972,-2278.144,0.00016287,2]
[398488728,1765737042981,-13056.12545047,0.00016289,2]
[398488729,1765737042991,-178.128,0.00016289,2]
[398488730,1765737043001,-40425.43667249,0.000163,2]
[398488731,1765737043010,-480.71,0.000163,2]
[398488732,1765737043019,-480.71,0.000163,2]
[398488733,1765737043029,-480.71,0.000163,2]
[398488734,1765737043038,-1405.56,0.000163,2]
[398488735,1765737043047,-480.71,0.000163,2]
[398488736,1765737043056,-480.71,0.000163,2]
[398488737,1765737043065,-300.0,0.000163,2]
[398488738,1765737043074,-480.71,0.000163,2]
[398488739,1765737043082,-743.06576094,0.00016341,2]
[398488740,1765737043091,-217.72,0.00016351,2]
[398488741,1765737043100,-13056.12545047,0.00016411,2]
[398488742,1765737043109,-200.0,0.00016425,2]
[398488743,1765737043119,-157.26006085,0.00016425,2]
[398488744,1765737043127,-150.0,0.00016425,2]
[398488745,1765737043136,-150.0,0.00016425,2]
[398488746,1765737043148,-150.0,0.00016425,2]
[398488747,1765737043157,-150.0,0.00016425,2]
[398488748,1765737043166,-150.0,0.00016425,2]
[398488749,1765737043175,-150.23382477,0.00016425,2]
[398488750,1765737043185,-253.60258824,0.00016425,2]
[398488751,1765737043194,-150.0,0.00016425,2]
[398488752,1765737043204,-150.0,0.00016425,2]
[398488753,1765737043213,-150.0,0.00016425,2]
[398488754,1765737043222,-152.84303345,0.00016425,2]
[398488755,1765737043231,-500.0,0.00016425,2]
[398488756,1765737043240,-150.0,0.00016425,2]
[398488757,1765737043250,-150.0,0.00016425,2]
[398488758,1765737043259,-150.0,0.00016425,2]
[398488759,1765737043268,-500.0,0.00016425,2]
[398488760,1765737043278,-150.0,0.00016425,2]
[398488761,1765737043287,-150.59063363,0.00016425,2]
[398488762,1765737043296,-150.0,0.00016425,2]
[398488763,1765737043305,-150.0,0.00016425,2]
[398488764,1765737043315,-500.0,0.00016425,2]
[398488765,1765737043324,-150.0,0.00016425,2]
[398488766,1765737043333,-500.0,0.00016425,2]
[398488767,1765737043343,-150.0,0.00016425,2]
[398488768,1765737043352,-500.0,0.00016425,2]
[398488769,1765737043361,-500.0,0.00016425,2]
[398488770,1765737043371,-500.0,0.00016425,2]
[398488771,1765737043380,-150.0,0.00016425,2]
[398488772,1765737043389,-150.0,0.00016425,2]
[398488773,1765737043398,-500.0,0.00016425,2]
[398488774,1765737043407,-500.0,0.00016425,2]
[398488775,1765737043416,-500.0,0.00016425,2]
[398488776,1765737043425,-500.0,0.00016425,2]
[398488777,1765737043435,-150.0,0.00016425,2]
[398488778,1765737043444,-1711.0,0.00016425,2]
[398488779,1765737043454,-150.0,0.00016425,2]
[398488780,1765737043464,-500.0,0.00016425,2]
[398488781,1765737043473,-150.0,0.00016425,2]
[398488782,1765737043482,-538.03,0.00016428,2]
[398488783,1765737043491,-1619.65008717,0.00016429,2]
[398488784,1765737043501,-200.0,0.00016431,2]
[398488785,1765737043511,-258.32,0.00016432,2]
[398488786,1765737043520,-150.0,0.00016438,2]
[398488787,1765737043530,-500.0,0.00016438,2]
[398488788,1765737043539,-500.0,0.00016438,2]
[398488789,1765737043549,-500.0,0.00016438,2]
[398488790,1765737043558,-500.0,0.00016438,2]
[398488791,1765737043568,-500.0,0.00016438,2]
[398488792,1765737043577,-500.0,0.00016438,2]
[398488793,1765737043587,-500.0,0.00016438,2]
[398488794,1765737043597,-500.0,0.00016438,2]
[398488795,1765737043607,-500.0,0.00016438,2]
[398488796,1765737043616,-359.8050255,0.00016438,2]
[398488797,1765737043626,-500.0,0.00016438,2]
[398488798,1765737043637,-500.0,0.00016438,2]
[398488799,1765737043648,-500.0,0.00016438,2]
[398488800,1765737043657,-500.0,0.00016438,2]
[398488801,1765737043666,-500.0,0.00016438,2]
[398488802,1765737043676,-500.0,0.00016438,2]
[398488803,1765737043684,-500.0,0.00016438,2]
[398488804,1765737043693,-500.0,0.00016438,2]
[398488805,1765737043703,-632.34,0.00016438,2]
[398488806,1765737043712,-464.03,0.00016438,2]
[398488807,1765737043721,-301.17,0.00016438,2]
[398488808,1765737043730,-178.24,0.00016438,2]
[398488809,1765737043740,-166.66,0.0001649,2]
[398488810,1765737043750,-500.0,0.00016496,2]
[398488811,1765737043759,-500.0,0.00016496,2]
[398488812,1765737043768,-13056.12545047,0.00016533,2]
[398488813,1765737043777,-1201.74967978,0.00016542,5]
[398488814,1765737043786,-150.0,0.00016562,2]
[398488815,1765737043795,-500.0,0.00016562,2]
[398488816,1765737043804,-150.0,0.00016562,2]
[398488817,1765737043814,-150.0,0.00016562,2]
[398488818,1765737043825,-150.0,0.00016562,2]
[398488819,1765737043835,-500.0,0.00016562,2]
[398488820,1765737043845,-150.0,0.00016562,2]
[398488821,1765737043854,-150.0,0.00016562,2]
[398488822,1765737043862,-500.0,0.00016562,2]
[398488823,1765737043872,-150.0,0.00016562,2]
[398488824,1765737043881,-500.0,0.00016562,2]
[398488825,1765737043890,-500.0,0.00016562,2]
[398488826,1765737043899,-500.0,0.00016562,2]
[398488827,1765737043908,-500.0,0.00016562,2]
[398488828,1765737043923,-500.0,0.00016562,2]
[398488829,1765737043932,-500.0,0.00016562,2]
[398488830,1765737043942,-500.0,0.00016562,2]
[398488831,1765737043951,-500.0,0.00016562,2]
[398488832,1765737043962,-1711.0,0.00016562,2]
[398488833,1765737043971,-500.0,0.00016562,2]
[398488834,1765737043982,-150.0,0.00016562,2]
[398488835,1765737043992,-150.0,0.00016562,2]
[398488836,1765737044004,-150.0,0.00016575,2]
[398488837,1765737044012,-1619.65008717,0.00016586,2]
[398488838,1765737044022,-13056.12545047,0.00016656,2]
[398488839,1765737044030,-1397.78669648,0.0001666,2]
[398488840,1765737044039,-681.12661639,0.0001666,2]
[398488841,1765737044048,-3451.0,0.00016682,2]
[398488842,1765737044057,-200.0,0.00016699,2]
[398488843,1765737044066,-558.0,0.00016699,2]
[398488844,1765737044075,-200.0,0.00016699,2]
[398488845,1765737044084,-150.0,0.00016699,2]
[398488846,1765737044488,-200.0,0.00016699,2]
[398488847,1765737044498,-500.0,0.00016699,2]
[398488848,1765737044509,-200.0,0.00016699,2]
[398488849,1765737044520,-200.0,0.00016699,2]
[398488850,1765737044530,-500.0,0.00016699,2]
[398488851,1765737044540,-500.0,0.00016699,2]
[398488852,1765737044550,-250.0,0.00016699,2]
[398488853,1765737044559,-150.0,0.00016699,2]
[398488854,1765737044568,-365.4333116,0.00016699,2]
[398488855,1765737044578,-500.0,0.00016699,2]
[398488856,1765737044587,-500.0,0.00016699,2]
[398488857,1765737044596,-500.0,0.00016699,2]
[398488858,1765737044606,-1711.0,0.00016699,2]
[398488859,1765737044615,-644.0,0.00016699,2]
[398488860,1765737044624,-150.0,0.00016699,2]
[398488861,1765737044633,-200.0,0.00016699,2]
[398488862,1765737044642,-538.03,0.00016702,2]
[398488863,1765737044652,-500.0,0.0001674,2]
[398488864,1765737044661,-1619.65008717,0.00016743,2]
[398488865,1765737044670,-249.29,0.00016745,2]
[398488866,1765737044679,-168.0,0.00016767,2]
[398488867,1765737044689,-500.0,0.00016773,2]
[398488868,1765737044697,-500.0,0.00016773,2]
[398488869,1765737044707,-500.0,0.00016773,2]
[398488870,1765737044715,-500.0,0.00016773,2]
[398488871,1765737044724,-500.0,0.00016773,2]
[398488872,1765737044733,-500.0,0.00016773,2]
[398488873,1765737044744,-500.0,0.00016773,2]
[398488874,1765737044753,-500.0,0.00016773,2]
[398488875,1765737044762,-517.81601254,0.00016773,2]
[398488876,1765737044771,-504.48723709,0.00016773,2]
[398488877,1765737044779,-500.0,0.00016773,2]
[398488878,1765737044788,-500.0,0.00016773,2]
[398488879,1765737044797,-566.76008115,0.00016773,2]
[398488880,1765737044805,-500.0,0.00016773,2]
[398488881,1765737044815,-167.51806982,0.00016773,2]
[398488882,1765737044824,-152.21927846,0.00016773,2]
[398488883,1765737044832,-500.0,0.00016773,2]
[398488884,1765737044842,-500.0,0.00016773,2]
[398488885,1765737044850,-13056.12545047,0.00016778,2]
[398488886,1765737044859,-1254.99345248,0.00016786,2]
[398488887,1765737044868,-3757.0,0.00016821,2]
[398488888,1765737044877,-1682.87694,0.0001683,2]
[398488889,1765737044886,-150.0,0.00016836,2]
[398488890,1765737044895,-300.0,0.00016836,2]
[398488891,1765737044904,-500.0,0.00016836,2]
[398488892,1765737044913,-343.24107785,0.00016836,2]
[398488893,1765737044927,-500.0,0.00016836,2]
[398488894,1765737044936,-150.0,0.00016836,2]
[398488895,1765737044945,-251.0,0.00016836,2]
[398488896,1765737044954,-1711.0,0.00016836,2]
[398488897,1765737044964,-150.0,0.00016836,2]
[398488898,1765737044972,-1261.0,0.00016863,2]
[398488899,1765737044981,-589.0,0.00016863,2]
[398488900,1765737044992,-911.0,0.00016863,2]
[398488901,1765737045001,-1196.0,0.00016863,2]
[398488902,1765737045010,-1607.0,0.00016863,2]
[398488903,1765737045019,-1324.0,0.00016863,2]
[398488904,1765737045031,-174.72956917,0.00016873,2]
[398488905,1765737045042,-168.0,0.00016882,2]
[398488906,1765737045051,-743.06576094,0.00016899,2]
[398488907,1765737045062,-10000.0,0.000169,2]
[398488908,1765737045073,-305.0,0.000169,2]
[398488909,1765737045083,-200.0,0.000169,2]
[398488910,1765737045092,-1619.65008717,0.000169,2]
[398488911,1765737045101,-514.59451364,0.000169,2]
[398488912,1765737045110,-174.72956916,0.000169,2]
[398488913,1765737045120,-13056.12545047,0.000169,2]
[398488914,1765737045130,-298.0,0.000169,2]
[398488915,1765737045140,-219.64304449,0.000169,2]
[398488916,1765737045149,-974.0,0.000169,2]
[398488917,1765737045159,-510.0,0.00016902,2]
[398488918,1765737045170,-152.0,0.00016921,2]
[398488919,1765737045179,-152.0,0.00016921,2]
[398488920,1765737045192,-152.0,0.00016921,2]
[398488921,1765737045203,-152.0,0.00016921,2]
[398488922,1765737045213,-151.16701834,0.00016921,2]
[398488923,1765737045222,-152.0,0.00016921,2]
[398488924,1765737045231,-152.0,0.00016921,2]
[398488925,1765737045240,-152.0,0.00016921,2]
[398488926,1765737045250,-157.0,0.00016921,2]
[398488927,1765737045259,-152.0,0.00016921,2]
[398488928,1765737045268,-152.0,0.00016921,2]
[398488929,1765737045278,-157.0,0.00016921,2]
[398488930,1765737045288,-152.0,0.00016921,2]
[398488931,1765737045297,-157.0,0.00016921,2]
[398488932,1765737045307,-152.0,0.00016921,2]
[398488933,1765737045317,-157.0,0.00016921,2]
[398488934,1765737045326,-152.0,0.00016921,2]
[398488935,1765737045336,-157.0,0.00016921,2]
[398488936,1765737045346,-152.0,0.00016921,2]
[398488937,1765737045355,-152.0,0.00016921,2]
[398488938,1765737045364,-152.0,0.00016921,2]
[398488939,1765737045374,-152.0,0.00016921,2]
[398488940,1765737045384,-152.0,0.00016921,2]
[398488942,1765737045394,-152.0,0.00016921,2]
[398488943,1765737045404,-152.0,0.00016921,2]
[398488944,1765737045413,-152.0,0.00016921,2]
[398488945,1765737045423,-152.0,0.00016921,2]
[398488946,1765737045432,-152.0,0.00016921,2]
[398488947,1765737045442,-152.0,0.00016921,2]
[398488948,1765737045454,-152.0,0.00016921,2]
[398488949,1765737045464,-152.0,0.00016921,2]
[398488950,1765737045474,-152.0,0.00016921,2]
[398488952,1765737045484,-152.0,0.00016921,2]
[398488953,1765737045494,-152.0,0.00016921,2]
[398488954,1765737045504,-152.0,0.00016921,2]
[398488955,1765737045513,-152.0,0.00016921,2]
[398488956,1765737045523,-152.0,0.00016921,2]
[398488957,1765737045533,-153.0,0.00016921,2]
[398488958,1765737045543,-152.0,0.00016921,2]
[398488959,1765737045553,-153.0,0.00016921,2]
[398488960,1765737045562,-152.0,0.00016921,2]
[398488961,1765737045572,-153.0,0.00016921,2]
[398488962,1765737045581,-152.0,0.00016921,2]
[398488963,1765737045591,-153.0,0.00016921,2]
[398488964,1765737045600,-152.0,0.00016921,2]
[398488965,1765737045609,-153.0,0.00016921,2]
[398488966,1765737045619,-152.0,0.00016921,2]
[398488967,1765737045628,-153.0,0.00016921,2]
[398488968,1765737045638,-152.0,0.00016921,2]
[398488969,1765737045647,-153.0,0.00016921,2]
[398488970,1765737045656,-152.0,0.00016921,2]
[398488971,1765737045666,-153.0,0.00016921,2]
[398488972,1765737045676,-152.0,0.00016921,2]
[398488973,1765737045685,-153.0,0.00016921,2]
[398488974,1765737045695,-152.0,0.00016921,2]
[398488975,1765737045706,-153.0,0.00016921,2]
[398488976,1765737045716,-152.0,0.00016921,2]
[398488977,1765737045725,-153.0,0.00016921,2]
[398488978,1765737045735,-152.0,0.00016921,2]
[398488979,1765737045744,-153.0,0.00016921,2]
[398488980,1765737045754,-152.0,0.00016921,2]
[398488981,1765737045763,-212.60063327,0.00016921,2]
[398488982,1765737045772,-233.3764448,0.00016921,2]
[398488983,1765737045781,-152.0,0.00016921,2]
[398488984,1765737045790,-152.0,0.00016921,2]
[398488985,1765737045799,-152.0,0.00016921,2]
[398488986,1765737045808,-152.0,0.00016921,2]
[398488987,1765737045820,-152.0,0.00016921,2]
[398488988,1765737045830,-152.0,0.00016921,2]
[398488989,1765737045840,-152.0,0.00016921,2]
[398488990,1765737045851,-152.0,0.00016921,2]